bitfinex/quotes_SOLUSD_20240708
["timestamp","ask_amount","ask_price","bid_price","bid_amount"]
[1720408708806,122.6013,131.28,131.21,0.2]
[1720408709315,100.0,131.26,131.21,0.2]
[1720408710703,22.6013,131.28,131.21,0.2]
[1720408710704,106.5914,131.28,131.21,0.2]
[1720408710911,106.5914,131.28,131.22,0.17]
[1720408711110,106.5914,131.28,131.21,0.2]
[1720408711317,100.0,131.24,131.21,0.2]
[1720408711510,100.0,131.22,131.21,0.2]
[1720408711704,100.0,131.24,131.21,0.2]
[1720408712295,100.0,131.22,131.21,0.2]
[1720408712706,100.0,131.24,131.21,0.2]
[1720408714717,6.5914,131.28,131.21,0.2]
[1720408715022,6.5914,131.28,131.22,0.17]
[1720408715196,6.5914,131.28,131.21,0.2]
[1720408715400,100.0,131.29,131.21,0.2]
[1720408715601,100.0,131.29,131.22,0.17]
[1720408715802,100.0,131.32,131.22,20.2999]
[1720408716006,100.0,131.3,131.22,20.2999]
[1720408716315,100.0,131.32,131.23,20.0]
[1720408716537,100.0,131.3,131.24,0.17]
[1720408716726,100.0,131.34,131.24,0.17]
[1720408718618,100.0,131.32,131.24,0.17]
[1720408719704,100.0,131.34,131.24,0.17]
[1720408720615,100.0,131.32,131.24,0.17]
[1720408721216,100.0,131.3,131.23,20.0]
[1720408721404,100.0,131.28,131.22,15.1138]
[1720408721731,100.0,131.28,131.21,0.2]
[1720408721916,100.0,131.26,131.21,0.2]
[1720408722310,100.0,131.28,131.21,0.2]
[1720408722715,115.3862,131.32,131.21,0.2]
[1720408723120,100.0,131.32,131.21,0.2]
[1720408723729,100.0,131.32,131.22,0.17]
[1720408731134,100.0,131.3,131.22,0.17]
[1720408731323,100.0,131.28,131.22,0.17]
[1720408731917,100.0,131.28,131.21,0.2]
[1720408732337,100.0,131.26,131.21,0.2]
[1720408732838,100.0,131.28,131.21,0.2]
[1720408733618,100.0,131.26,131.21,0.2]
[1720408734815,100.0,131.28,131.21,0.2]
[1720408735643,100.0,131.25,131.21,0.2]
[1720408736237,100.0,131.28,131.21,0.2]
[1720408737925,100.0,131.28,131.22,0.17]
[1720408738124,100.0,131.26,131.21,0.2]
[1720408740029,100.0,131.22,131.21,0.2]
[1720408745729,6.1999,131.26,131.21,0.2]
[1720408745730,100.0,131.25,131.21,0.2]
[1720408746040,100.0,131.29,131.21,0.2]
[1720408746228,260.1,131.32,131.22,15.7231]
[1720408746229,100.0,131.32,131.22,15.7231]
[1720408746430,6.2451,131.34,131.23,20.0]
[1720408746652,6.2451,131.34,131.24,0.17]
[1720408747352,100.0,131.32,131.24,0.17]
[1720408747552,100.0,131.3,131.23,20.0]
[1720408748554,100.0,131.28,131.23,20.0]
[1720408750156,100.0,131.26,131.23,20.0]
[1720408750864,100.0,131.24,131.21,0.2]
[1720408751046,100.0,131.22,131.21,0.2]
[1720408751758,100.0,131.24,131.21,0.2]
[1720408753047,100.0,131.22,131.21,0.2]
[1720408753455,100.17,131.22,131.21,0.2]
[1720408758058,100.0,131.15,131.14,0.8520024]
[1720408758778,6.0429,131.21,131.14,0.8520024]
[1720408758779,100.0,131.17,131.14,0.8520024]
[1720408759277,100.0,131.15,131.14,0.8520024]
[1720408767275,100.0,131.18,131.14,0.8520024]
[1720408768572,100.0,131.16,131.14,0.8520024]
[1720408768776,100.0,131.18,131.14,0.8520024]
[1720408769168,100.0,131.21,131.14,17.4317024]
[1720408769691,100.0,131.21,131.15,20.0]
[1720408770284,100.0,131.19,131.15,20.0]
[1720408771772,100.0,131.21,131.15,20.0]
[1720408772001,100.0,131.23,131.16,0.17]
[1720408772178,100.0,131.25,131.16,0.17]
[1720408774197,100.0,131.22,131.16,0.17]
[1720408774395,100.0,131.24,131.16,0.17]
[1720408774696,100.0,131.26,131.18,15.2977]
[1720408774879,100.0,131.26,131.19,20.17]
[1720408775595,100.0,131.28,131.19,20.17]
[1720408775998,121.7045,131.32,131.19,20.17]
[1720408776185,106.4854,131.32,131.19,20.17]
[1720408776901,100.0,131.3,131.19,20.17]
[1720408779000,100.0,131.27,131.19,20.17]
[1720408779296,100.0,131.25,131.19,20.0]
[1720408779680,100.0,131.28,131.19,20.0]
[1720408780588,100.0,131.28,131.2,1.04068877]
[1720408780791,100.0,131.3,131.2,1.04068877]
[1720408781286,100.0,131.3,131.2,0.17]
[1720408782688,100.0,131.3,131.2,1.04328578]
[1720408782880,106.4854,131.32,131.22,16.6039]
[1720408783082,106.4854,131.32,131.23,20.17]
[1720408783286,100.0,131.32,131.23,20.17]
[1720408783681,100.0,131.34,131.23,20.17]
[1720408784497,100.0,131.33,131.23,20.17]
[1720408787386,100.0,131.35,131.23,20.17]
[1720408787677,100.0,131.37,131.24,21.2083]
[1720408787979,100.0,131.39,131.26,16.1922]
[1720408788179,100.0,131.39,131.27,20.17]
[1720408788601,100.0,131.39,131.29,35.52]
[1720408788790,100.0,131.39,131.3,20.17]
[1720408788988,100.0,131.35,131.3,20.17]
[1720408790101,100.0,131.35,131.3,20.0]
[1720408790298,100.0,131.35,131.27,20.0]
[1720408790496,100.0,131.35,131.28,0.17]
[1720408791209,100.0,131.33,131.28,0.17]
[1720408791415,100.0,131.33,131.27,20.0]
[1720408792695,100.0,131.35,131.27,20.0]
[1720408795109,100.0,131.37,131.28,0.17]
[1720408795898,22.9597,131.4,131.29,5.0161]
[1720408795899,100.0,131.39,131.29,5.0161]
[1720408796096,100.0,131.38,131.3,36.6611]
[1720408797316,22.6105,131.44,131.3,36.6611]
[1720408797317,100.0,131.36,131.3,36.6611]
[1720408798212,100.0,131.34,131.3,36.4911]
[1720408798895,100.0,131.34,131.3,20.0]
[1720408799096,100.0,131.34,131.28,20.0]
[1720408799308,100.0,131.34,131.26,16.3343]
[1720408799594,100.0,131.32,131.26,16.3343]
[1720408799832,100.0,131.34,131.26,16.3343]
[1720408800400,0.17,131.35,131.26,16.3343]
[1720408800401,100.0,131.3,131.26,16.3343]
[1720408800597,100.0,131.35,131.26,16.3343]
[1720408801032,100.0,131.32,131.26,16.3343]
[1720408801330,15.0799,131.37,131.26,16.3343]
[1720408801331,100.0,131.34,131.26,16.3343]
[1720408801508,15.1487,131.4,131.26,16.3343]
[1720408801816,6.5527,131.42,131.29,39.97]
[1720408802023,100.0,131.43,131.3,20.536]
[1720408802333,100.0,131.4,131.31,0.17]
[1720408802501,100.0,131.37,131.31,20.17]
[1720408802821,100.0,131.37,131.31,20.0]
[1720408803519,100.0,131.35,131.3,15.5199]
[1720408803823,100.0,131.32,131.27,5.0161]
[1720408803997,100.0,131.32,131.24,5.0161]
[1720408804529,100.0,131.34,131.24,5.0161]
[1720408804708,100.0,131.29,131.23,5.98414451]
[1720408804896,100.0,131.27,131.18,15.8331]
[1720408805100,100.0,131.23,131.14,27.72486026]
[1720408805316,0.17,131.22,131.14,16.6851024]
[1720408805522,100.0,131.21,131.14,16.6851024]
[1720408805824,100.0,131.26,131.14,16.6851024]
[1720408806024,100.0,131.24,131.14,16.6851024]
[1720408806342,100.0,131.22,131.14,16.6851024]
[1720408806500,100.0,131.23,131.14,16.6851024]
[1720408807118,100.0,131.21,131.14,16.6851024]
[1720408807623,100.0,131.25,131.14,16.6851024]
[1720408807924,100.0,131.25,131.15,20.17]
[1720408808618,100.0,131.27,131.15,20.17]
[1720408808820,100.0,131.27,131.16,5.0161]
[1720408809120,100.0,131.25,131.17,20.17]
[1720408810018,100.0,131.23,131.17,20.17]
[1720408810630,100.0,131.21,131.16,5.0161]
[1720408810805,100.0,131.21,131.14,16.6851024]
[1720408811209,100.0,131.28,131.14,16.6851024]
[1720408811608,100.0,131.24,131.14,16.6851024]
[1720408811810,106.027,131.3,131.14,16.6851024]
[1720408812022,106.027,131.3,131.14,39.5751024]
[1720408812214,100.0,131.29,131.16,44.9861]
[1720408812524,100.0,131.31,131.18,27.9061]
[1720408812702,100.0,131.36,131.21,5.0161]
[1720408812907,100.0,131.34,131.22,20.17]
[1720408813221,100.0,131.32,131.22,20.17]
[1720408813721,6.5623,131.38,131.23,16.1039]
[1720408813722,100.0,131.37,131.23,16.1039]
[1720408813918,100.0,131.37,131.24,20.17]
[1720408814519,100.0,131.35,131.24,20.17]
[1720408814812,100.0,131.37,131.24,20.17]
[1720408815017,100.0,131.41,131.25,5.0161]
[1720408815214,100.0,131.35,131.26,20.17]
[1720408815626,100.0,131.31,131.25,5.0161]
[1720408815824,100.0,131.34,131.25,5.0161]
[1720408816908,100.0,131.36,131.25,5.0161]
[1720408817105,100.0,131.36,131.26,20.0]
[1720408817523,100.0,131.4,131.26,20.0]
[1720408817713,100.0,131.36,131.26,20.0]
[1720408817900,100.0,131.34,131.26,20.0]
[1720408818101,100.0,131.34,131.27,0.17]
[1720408818428,100.0,131.34,131.26,20.0]
[1720408818730,100.0,131.29,131.23,16.1039]
[1720408819021,100.0,131.29,131.21,5.0161]
[1720408819229,100.0,131.27,131.21,5.0161]
[1720408819525,100.0,131.29,131.21,5.0161]
[1720408820304,100.0,131.31,131.21,5.0161]
[1720408820505,100.0,131.29,131.21,5.0161]
[1720408822228,100.0,131.29,131.22,20.0]
[1720408822428,100.0,131.31,131.22,20.17]
[1720408823515,100.0,131.33,131.22,20.17]
[1720408824339,100.0,131.33,131.19,39.97]
[1720408824646,100.0,131.24,131.15,15.9122]
[1720408826548,100.0,131.26,131.15,15.9122]
[1720408826727,100.0,131.3,131.16,20.0]
[1720408826911,100.0,131.28,131.16,20.0]
[1720408827312,100.0,131.28,131.17,0.17]
[1720408828435,100.0,131.3,131.17,0.17]
[1720408828829,100.0,131.3,131.18,5.0161]
[1720408829159,100.0,131.3,131.19,20.17]
[1720408831034,100.0,131.3,131.2,15.5497]
[1720408831215,100.0,131.3,131.21,20.17]
[1720408831621,100.0,131.32,131.21,20.17]
[1720408832022,21.6981,131.36,131.22,5.0161]
[1720408832023,100.0,131.36,131.22,5.0161]
[1720408832230,100.0,131.36,131.23,35.7197]
[1720408832537,100.0,131.35,131.23,35.5497]
[1720408833920,100.0,131.35,131.24,0.17]
[1720408834929,100.0,131.33,131.24,0.17]
[1720408835534,0.17,131.36,131.23,15.5497]
[1720408835535,100.0,131.31,131.23,15.5497]
[1720408836339,100.0,131.29,131.23,15.5497]
[1720408837032,100.0,131.31,131.23,15.5497]
[1720408837741,100.0,131.31,131.24,0.17]
[1720408838237,100.0,131.33,131.24,0.17]
[1720408838448,100.0,131.3,131.24,20.17]
[1720408838938,100.0,131.3,131.24,20.0]
[1720408839349,100.0,131.28,131.21,6.13265557]
[1720408839565,100.0,131.26,131.16,5.0161]
[1720408839734,100.0,131.24,131.16,5.0161]
[1720408840636,100.0,131.22,131.15,15.8675]
[1720408841738,100.0,131.22,131.16,20.0]
[1720408842056,100.0,131.22,131.16,20.17]
[1720408842344,100.0,131.24,131.16,20.17]
[1720408844154,100.0,131.22,131.16,20.17]
[1720408844526,100.0,131.22,131.16,20.0]
[1720408844932,100.0,131.24,131.16,20.0]
[1720408845427,100.0,131.2,131.16,20.0]
[1720408848734,100.0,131.18,131.12,5.0161]
[1720408849135,100.0,131.18,131.11,15.7064]
[1720408849343,100.0,131.16,131.11,15.7064]
[1720408850731,100.0,131.16,131.11,0.2]
[1720408855932,0.17,131.15,131.11,0.2]
[1720408861662,23.2324,131.15,131.11,0.2]
[1720408861871,123.2324,131.15,131.11,0.2]
[1720408862036,100.0,131.15,131.11,0.2]
[1720408862460,360.1,131.22,131.11,0.2]
[1720408862634,100.0,131.26,131.15,15.6629]
[1720408862832,6.4911,131.27,131.16,20.0]
[1720408862833,100.0,131.22,131.16,20.0]
[1720408863244,100.0,131.24,131.16,20.0]
[1720408863474,100.0,131.21,131.16,20.0]
[1720408863646,100.0,131.18,131.15,15.6629]
[1720408863840,100.0,131.16,131.14,5.8681024]
[1720408864045,100.0,131.16,131.14,0.8520024]
[1720408865570,100.0,131.19,131.14,0.8520024]
[1720408867355,100.0,131.21,131.14,5.8681024]
[1720408867652,100.0,131.27,131.15,36.5156]
[1720408867869,100.0,131.29,131.15,36.5156]
[1720408868369,100.0,131.29,131.16,39.97]
[1720408868567,100.0,131.29,131.17,20.17]
[1720408871570,100.0,131.29,131.18,5.0161]
[1720408871762,100.0,131.34,131.19,20.17]
[1720408872079,100.0,131.34,131.2,55.1755]
[1720408872257,100.0,131.34,131.21,20.17]
[1720408872970,100.0,131.33,131.21,20.17]
[1720408873267,100.0,131.27,131.2,15.2055]
[1720408873461,100.0,131.29,131.2,15.2055]
[1720408874672,100.0,131.29,131.21,0.17]
[1720408875267,100.0,131.29,131.21,20.0]
[1720408875469,100.0,131.23,131.17,6.13832398]
[1720408875677,6.4357,131.28,131.14,5.8681024]
[1720408875678,100.0,131.25,131.14,5.8681024]
[1720408876773,100.0,131.25,131.15,20.0]
[1720408876954,100.0,131.25,131.14,5.8681024]
[1720408877148,100.0,131.25,131.15,0.17]
[1720408877355,100.0,131.27,131.15,0.17]
[1720408877555,100.0,131.27,131.16,15.0748]
[1720408877751,100.0,131.27,131.17,0.17]
[1720408878173,100.0,131.27,131.17,20.17]
[1720408879882,100.0,131.29,131.17,20.17]
[1720408881389,100.0,131.26,131.17,20.17]
[1720408882797,100.0,131.24,131.17,20.17]
[1720408886779,100.0,131.24,131.17,0.17]
[1720408888099,100.0,131.2,131.14,0.8520024]
[1720408888403,100.0,131.18,131.14,0.8520024]
[1720408889099,100.0,131.16,131.14,0.8520024]
[1720408891379,100.0,131.2,131.14,0.8520024]
[1720408891902,100.0,131.22,131.15,0.17]
[1720408892476,100.0,131.18,131.14,0.8520024]
[1720408893081,100.0,131.2,131.14,0.8520024]
[1720408894410,100.0,131.22,131.14,0.8520024]
[1720408895901,106.0619,131.25,131.15,0.17]
[1720408896100,8.85762331,131.29,131.16,21.1505]
[1720408896101,100.0,131.28,131.16,21.1505]
[1720408896289,100.0,131.28,131.17,20.17]
[1720408897602,16.6241,131.31,131.17,20.17]
[1720408897603,100.0,131.26,131.17,20.17]
[1720408898808,100.0,131.27,131.17,20.17]
[1720408899391,100.0,131.25,131.17,20.17]
[1720408899588,100.0,131.23,131.16,21.1505]
[1720408899805,100.0,131.27,131.16,21.1505]
[1720408900483,100.0,131.29,131.16,21.1505]
[1720408900689,100.0,131.24,131.16,21.1505]
[1720408900890,100.0,131.22,131.16,21.1505]
[1720408901992,100.0,131.22,131.17,20.0]
[1720408902388,100.0,131.22,131.16,21.1505]
[1720408902591,100.0,131.2,131.16,21.1505]
[1720408903513,100.0,131.2,131.14,0.8520024]
[1720408907714,100.0,131.22,131.15,0.17]
[1720408908012,100.0,131.19,131.14,0.8520024]
[1720408911320,100.0,131.21,131.14,0.8520024]
[1720408911504,100.0,131.23,131.14,0.8520024]
[1720408911699,100.0,131.21,131.14,0.8520024]
[1720408911905,100.0,131.19,131.14,0.8520024]
[1720408912404,100.0,131.21,131.14,0.8520024]
[1720408912609,100.0,131.2,131.14,0.8520024]
[1720408913121,100.0,131.22,131.14,0.8520024]
[1720408913314,100.0,131.22,131.15,0.17]
[1720408913918,100.0,131.19,131.14,0.8520024]
[1720408914318,0.17,131.2,131.14,0.8520024]
[1720408914319,100.0,131.17,131.14,0.8520024]
[1720408914715,100.0,131.19,131.14,0.8520024]
[1720408914914,100.0,131.22,131.14,0.8520024]
[1720408915227,100.0,131.19,131.14,0.8520024]
[1720408917713,100.0,131.21,131.14,0.8520024]
[1720408918607,100.0,131.23,131.14,21.7657024]
[1720408919212,100.0,131.25,131.15,20.17]
[1720408919512,100.0,131.22,131.14,21.7657024]
[1720408920733,100.0,131.24,131.15,20.17]
[1720408920935,100.0,131.22,131.15,20.0]
[1720408921119,100.0,131.2,131.15,20.0]
[1720408921306,100.0,131.2,131.14,21.7657024]
[1720408922011,100.0,131.2,131.14,27.80176692]
[1720408922405,100.0,131.18,131.14,0.8520024]
[1720408922634,100.0,131.16,131.14,0.8520024]
[1720408925160,6.0177,131.2,131.14,0.8520024]
[1720408925161,100.0,131.18,131.14,0.8520024]
[1720408925835,106.6615,131.23,131.14,16.6969024]
[1720408926144,100.0,131.23,131.14,21.7130024]
[1720408926919,100.0,131.21,131.15,0.17]
[1720408927120,100.0,131.21,131.15,20.17]
[1720408927947,100.0,131.23,131.15,20.17]
[1720408928344,100.0,131.25,131.15,20.17]
[1720408928555,13.76419902,131.24,131.15,20.17]
[1720408928733,100.0,131.25,131.15,20.17]
[1720408929046,6.6615,131.27,131.15,20.17]
[1720408929047,100.0,131.23,131.15,20.17]
[1720408929242,100.0,131.21,131.15,20.17]
[1720408929756,100.0,131.19,131.14,21.7130024]
[1720408930041,100.0,131.19,131.14,16.6969024]
[1720408931655,100.0,131.19,131.14,0.8520024]
[1720408932156,100.0,131.17,131.14,0.8520024]
[1720408932344,100.0,131.15,131.14,0.8520024]
[1720408933722,113.77259143,131.15,131.14,0.8520024]
[1720408933962,100.0,131.15,131.14,0.8520024]
[1720408934649,113.77303633,131.15,131.14,0.2521746]
[1720408934825,113.94303633,131.15,131.14,0.2521746]
[1720408935955,100.17,131.15,131.14,0.2521746]
[1720408936157,113.94456495,131.15,131.14,0.2521746]
[1720408936525,113.94488525,131.15,131.14,0.2521746]
[1720408936725,113.77488525,131.15,131.14,0.2521746]
[1720408936948,113.77355181,131.15,131.14,0.2521746]
[1720408937147,113.94355181,131.15,131.14,0.2521746]
[1720408938841,135.98648268,131.15,131.14,0.2521746]
[1720408939042,113.94355181,131.15,131.14,0.2521746]
[1720408939355,113.94619191,131.15,131.14,0.2521746]
[1720408940064,113.94462272,131.15,131.14,0.2521746]
[1720408940432,100.17,131.15,131.14,0.2521746]
[1720408941572,100.0,131.15,131.14,0.2521746]
[1720408943968,113.94534638,131.15,131.14,0.2521746]
[1720408944166,113.94520011,131.15,131.14,0.2521746]
[1720408944860,100.17,131.15,131.14,0.2521746]
[1720408945660,113.94471432,131.15,131.14,0.2521746]
[1720408945964,113.94500272,131.15,131.14,0.2521746]
[1720408948646,113.94500183,131.15,131.14,0.2521746]
[1720408950367,113.77500183,131.15,131.14,0.2521746]
[1720408951139,100.0,131.15,131.14,0.2521746]
[1720408952370,100.17,131.15,131.14,0.2521746]
[1720408952664,100.0,131.15,131.14,0.2521746]
[1720408955567,113.9452757,131.15,131.14,0.2521746]
[1720408955782,100.0,131.15,131.14,0.2521746]
[1720408961852,100.17,131.15,131.14,0.2521746]
[1720408962047,113.94521799,131.15,131.14,0.2521746]
[1720408963458,100.17,131.15,131.14,0.2521746]
[1720408963663,113.77383866,131.15,131.14,0.2521746]
[1720408963864,100.0,131.15,131.14,0.2521746]
[1720408964371,113.7739185,131.15,131.14,0.2521746]
[1720408964753,113.9439185,131.15,131.14,0.2521746]
[1720408964953,113.94445816,131.15,131.14,0.2521746]
[1720408966154,113.94369448,131.15,131.14,0.2521746]
[1720408966358,113.77369448,131.15,131.14,0.2521746]
[1720408966761,100.0,131.15,131.14,0.2521746]
[1720408967855,113.77307881,131.15,131.14,0.2521746]
[1720408968178,100.0,131.17,131.14,0.2521746]
[1720408968973,100.0,131.21,131.14,0.2521746]
[1720408969266,13.769971,131.2,131.15,0.17]
[1720408969477,100.0,131.24,131.15,0.17]
[1720408969792,35.79412183,131.23,131.16,15.9141]
[1720408969954,100.0,131.26,131.17,25.1861]
[1720408970154,35.78930303,131.25,131.18,35.65]
[1720408970356,13.76511655,131.24,131.19,20.0]
[1720408970597,100.0,131.26,131.19,20.0]
[1720408970758,13.76441827,131.25,131.2,0.17]
[1720408970967,100.0,131.26,131.2,0.17]
[1720408971471,100.0,131.28,131.2,0.17]
[1720408971991,100.0,131.26,131.2,0.17]
[1720408973601,100.0,131.26,131.19,20.0]
[1720408974087,100.0,131.23,131.17,5.0161]
[1720408974379,100.0,131.25,131.17,5.0161]
[1720408974956,100.0,131.27,131.17,5.0161]
[1720408975374,100.0,131.27,131.18,20.17]
[1720408976156,100.0,131.25,131.18,20.17]
[1720408976679,100.0,131.25,131.18,20.0]
[1720408976863,100.0,131.23,131.18,20.0]
[1720408977485,100.0,131.21,131.16,21.97341601]
[1720408978282,100.0,131.21,131.16,15.9141]
[1720408979383,100.0,131.21,131.14,0.2521746]
[1720408979763,100.0,131.19,131.14,0.2521746]
[1720408979966,100.0,131.15,131.14,0.2521746]
[1720408983285,100.0,131.17,131.14,0.2521746]
[1720408984366,100.0,131.19,131.14,0.2521746]
[1720408984564,100.0,131.22,131.14,0.2521746]
[1720408985575,100.0,131.24,131.14,0.2521746]
[1720408985773,100.0,131.24,131.15,0.17]
[1720408986178,100.0,131.22,131.15,0.17]
[1720408986675,100.0,131.2,131.14,20.2521746]
[1720408986875,100.0,131.22,131.14,20.2521746]
[1720408987075,100.0,131.22,131.14,19.9221746]
[1720408989285,100.0,131.22,131.15,0.17]
[1720408989484,100.0,131.24,131.15,0.17]
[1720408990092,100.0,131.22,131.15,0.17]
[1720408990289,100.0,131.2,131.14,19.9221746]
[1720408990785,100.0,131.2,131.15,20.0]
[1720408990985,100.0,131.2,131.12,20.0]
[1720408991886,100.0,131.2,131.13,0.17]
[1720408992691,100.0,131.18,131.12,20.0]
[1720408992891,100.0,131.18,131.11,0.2]
[1720408993089,100.0,131.18,131.11,6.40570803]
[1720408993271,100.0,131.16,131.11,0.2]
[1720408993470,100.0,131.14,131.11,0.2]
[1720408993887,100.0,131.16,131.11,0.2]
[1720408994276,100.0,131.18,131.11,0.2]
[1720408994688,100.0,131.16,131.11,0.2]
[1720408995894,100.0,131.14,131.11,0.2]
[1720408996971,100.0,131.16,131.11,0.2]
[1720408998078,100.0,131.14,131.11,0.2]
[1720408998274,100.0,131.12,131.11,0.2]
[1720408998690,100.17,131.12,131.11,0.2]
[1720408999493,100.0,131.1,131.0,36.4020024]
[1720408999879,100.0,131.1,131.0,0.7520024]
[1720409000282,100.0,131.1,131.01,0.17]
[1720409001095,100.0,131.12,131.01,0.17]
[1720409001991,100.0,131.12,131.01,35.82]
[1720409002182,100.0,131.12,131.02,20.0]
[1720409002382,100.0,131.12,131.03,0.17]
[1720409002695,100.0,131.14,131.04,35.65]
[1720409002880,100.0,131.14,131.05,20.17]
[1720409003079,7.96451679,131.17,131.05,20.17]
[1720409003080,100.0,131.1,131.05,20.17]
[1720409003381,100.0,131.1,131.03,35.65]
[1720409003571,100.0,131.14,131.04,20.17]
[1720409004296,100.0,131.14,131.06,35.65]
[1720409004501,100.0,131.14,131.07,20.17]
[1720409006894,100.0,131.14,131.07,20.0]
[1720409007602,100.0,131.14,131.06,0.17]
[1720409007897,100.0,131.14,131.05,0.17]
[1720409010004,100.0,131.16,131.06,35.65]
[1720409010209,107.96451679,131.19,131.09,35.65]
[1720409010514,100.0,131.17,131.1,20.17]
[1720409010877,100.0,131.19,131.1,20.0]
[1720409011274,100.0,131.19,131.11,0.17]
[1720409011694,100.0,131.17,131.1,20.0]
[1720409012779,100.0,131.17,131.1,36.0341]
[1720409013298,100.0,131.17,131.1,16.0341]
[1720409013797,100.0,131.15,131.1,16.0341]
[1720409013979,100.0,131.15,131.05,16.0341]
[1720409014303,6.1855,131.19,131.05,16.0341]
[1720409014304,100.0,131.13,131.06,55.65]
[1720409014684,100.0,131.15,131.06,55.65]
[1720409015096,100.0,131.13,131.06,55.65]
[1720409015696,100.0,131.16,131.06,55.65]
[1720409016198,0.17,131.15,131.06,55.65]
[1720409016795,100.0,131.16,131.07,0.17]
[1720409019302,100.0,131.14,131.06,20.0]
[1720409020390,100.0,131.12,131.06,20.0]
[1720409020794,100.0,131.12,131.05,16.0341]
[1720409020988,100.0,131.1,131.05,16.0341]
[1720409022708,100.0,131.12,131.05,16.0341]
[1720409023905,122.4478,131.14,131.05,51.6841]
[1720409024103,100.0,131.12,131.05,51.6841]
[1720409025793,100.0,131.12,131.05,16.0341]
[1720409026300,100.0,131.1,131.05,16.0341]
[1720409029312,100.0,131.1,131.01,57.18053022]
[1720409029499,100.0,131.1,131.01,51.0471]
[1720409030714,100.0,131.1,131.02,20.0]
[1720409031288,100.0,131.11,131.02,20.0]
[1720409031485,100.0,131.09,131.02,20.0]
[1720409033612,100.0,131.09,131.01,15.5671]
[1720409033910,100.0,131.09,131.02,20.17]
[1720409034110,100.0,131.12,131.02,20.17]
[1720409034305,100.0,131.12,131.04,35.65]
[1720409034891,100.0,131.12,131.05,15.6287]
[1720409035096,100.0,131.1,131.05,20.4748]
[1720409035720,100.0,131.1,131.05,15.4587]
[1720409038893,100.0,131.12,131.05,15.4587]
[1720409042209,100.0,131.1,131.05,15.4587]
[1720409042713,100.0,131.08,131.02,21.5171]
[1720409045201,100.0,131.1,131.03,20.0]
[1720409045392,100.0,131.12,131.03,55.65]
[1720409045598,100.0,131.12,131.04,0.17]
[1720409046215,100.0,131.1,131.04,0.17]
[1720409046409,100.0,131.08,131.03,20.0]
[1720409049000,100.0,131.06,131.02,16.501]
[1720409049604,100.0,131.08,131.02,16.501]